fUST/lending_fUST_20241111
["ID","MTS","AMOUNT","RATE_DAILY","PERIOD"]
[341860138,1731259850673,-329.43467224,0.00025753,2]
[341860139,1731259850683,-500.0,0.00025753,2]
[341860140,1731259850692,-4927.77,0.00025753,2]
[341860141,1731259850701,-500.0,0.00025753,2]
[341860142,1731259850710,-1154.43,0.00025753,2]
[341860143,1731259850719,-500.0,0.00025753,2]
[341860144,1731259850728,-500.0,0.00025753,2]
[341860145,1731259850738,-745.43,0.00025753,2]
[341860146,1731259850747,-516.84,0.00025753,2]
[341860147,1731259850756,-491.544911,0.00025753,7]
[341860148,1731259850766,-491.544911,0.00025753,7]
[341860149,1731259850775,-500.0,0.00025753,2]
[341860150,1731259850785,-500.0,0.00025753,2]
[341860151,1731259850793,-500.0,0.00025753,2]
[341860152,1731259850802,-1333.09,0.00025753,2]
[341860153,1731259850812,-500.0,0.00025753,2]
[341860154,1731259850824,-708.44,0.00025753,2]
[341860155,1731259850833,-500.0,0.00025753,2]
[341860156,1731259850843,-910.14,0.00025753,2]
[341860157,1731259850854,-251.883171,0.00025753,7]
[341860158,1731259850863,-957.29,0.00025753,2]
[341860159,1731259850873,-612.92,0.00025753,2]
[341860160,1731259850882,-251.883171,0.00025753,7]
[341860161,1731259850893,-917.924886,0.00025753,7]
[341860162,1731259850902,-917.924886,0.00025753,7]
[341860163,1731259850911,-500.0,0.00025753,2]
[341860164,1731259850921,-500.0,0.00025753,2]
[341860165,1731259850930,-514.62,0.00025753,2]
[341860166,1731259850939,-880.12,0.00025753,2]
[341860167,1731259850948,-530.45635311,0.0002579,2]
[341860168,1731259850958,-8680.32327734,0.00025874,2]
[341860169,1731259850968,-171.0,0.0002589,2]
[341860170,1731259850977,-184.41,0.00025966,11]
[341860171,1731259850986,-500.0,0.00025979,2]
[341860172,1731259850996,-424.0,0.00026,2]
[341860173,1731259851006,-500.0,0.00026027,2]
[341860174,1731259851015,-500.0,0.00026027,2]
[341860175,1731259851024,-500.0,0.00026027,2]
[341860176,1731259851033,-1222.68,0.00026027,2]
[341860177,1731259851043,-500.0,0.00026027,2]
[341860178,1731259851052,-500.0,0.00026027,2]
[341860179,1731259851061,-759.67,0.00026027,2]
[341860180,1731259851070,-509.83,0.00026027,2]
[341860181,1731259851079,-500.0,0.00026027,2]
[341860182,1731259851088,-500.0,0.00026027,2]
[341860183,1731259851099,-547.2,0.00026027,2]
[341860184,1731259851108,-1278.56,0.00026027,2]
[341860185,1731259851117,-500.0,0.00026027,2]
[341860186,1731259851126,-500.0,0.00026027,2]
[341860187,1731259851136,-500.0,0.00026027,2]
[341860188,1731259851145,-500.0,0.00026027,2]
[341860189,1731259851154,-500.0,0.00026027,2]
[341860190,1731259851163,-719.808437,0.00026027,7]
[341860191,1731259851172,-1280.29,0.00026027,2]
[341860192,1731259851181,-719.808437,0.00026027,7]
[341860193,1731259851190,-500.0,0.00026027,2]
[341860194,1731259851199,-191.783028,0.00026027,7]
[341860195,1731259851209,-500.0,0.00026027,2]
[341860196,1731259851218,-500.0,0.00026027,2]
[341860197,1731259851227,-500.0,0.00026027,2]
[341860198,1731259851236,-692.37,0.00026027,2]
[341860199,1731259851245,-500.0,0.00026027,2]
[341860200,1731259851254,-522.61,0.00026027,2]
[341860201,1731259851263,-500.0,0.00026027,2]
[341860202,1731259851272,-500.0,0.00026027,2]
[341860203,1731259851281,-500.0,0.00026027,2]
[341860204,1731259851290,-500.0,0.00026027,2]
[341860205,1731259851299,-500.0,0.00026027,2]
[341860206,1731259851308,-540.58,0.00026027,2]
[341860207,1731259851316,-500.0,0.00026027,2]
[341860208,1731259851326,-500.0,0.00026027,2]
[341860209,1731259851335,-500.0,0.00026027,2]
[341860210,1731259851344,-151.0,0.00026027,7]
[341860211,1731259851353,-151.0,0.00026027,7]
[341860212,1731259851458,-500.0,0.00026027,2]
[341860213,1731259851468,-704.27,0.00026027,2]
[341860214,1731259851477,-151.0,0.00026027,7]
[341860215,1731259851488,-561.51,0.00026027,2]
[341860216,1731259851497,-500.0,0.00026027,2]
[341860217,1731259851509,-500.0,0.00026027,2]
[341860218,1731259851518,-2207.341028,0.00026027,7]
[341860219,1731259851527,-2207.341028,0.00026027,7]
[341860220,1731259851538,-500.0,0.00026027,2]
[341860221,1731259851548,-151.0,0.00026027,7]
[341860222,1731259851558,-500.0,0.00026027,2]
[341860223,1731259851567,-500.0,0.00026027,2]
[341860224,1731259851577,-1143.39,0.00026027,2]
[341860225,1731259851586,-500.0,0.00026027,2]
[341860226,1731259851595,-500.0,0.00026027,2]
[341860227,1731259851605,-500.0,0.00026027,2]
[341860228,1731259851614,-500.0,0.00026027,2]
[341860229,1731259851623,-586.67,0.00026027,2]
[341860230,1731259851632,-520.53,0.00026027,2]
[341860231,1731259851641,-2033.34,0.00026027,2]
[341860232,1731259851650,-2276.74,0.00026027,2]
[341860233,1731259851659,-500.0,0.00026027,2]
[341860234,1731259851668,-500.0,0.00026027,2]
[341860235,1731259851678,-500.0,0.00026027,2]
[341860236,1731259851687,-768.41,0.00026027,2]
[341860237,1731259851696,-500.0,0.00026027,2]
[341860238,1731259851705,-5858.03,0.00026027,2]
[341860239,1731259851714,-500.0,0.00026027,2]
[341860240,1731259851723,-500.0,0.00026027,2]
[341860241,1731259851733,-461.791238,0.00026027,7]
[341860242,1731259851742,-500.0,0.00026027,2]
[341860243,1731259851751,-500.0,0.00026027,2]
[341860244,1731259851760,-739.7,0.00026027,2]
[341860245,1731259851770,-461.791238,0.00026027,7]
[341860246,1731259851780,-408.54176126,0.00026027,2]
[341860247,1731259851789,-501.40095141,0.00026027,2]
[341860248,1731259851798,-500.0,0.00026027,2]
[341860249,1731259851807,-1109.81,0.00026027,2]
[341860250,1731259851820,-500.0,0.00026027,2]
[341860251,1731259851829,-500.0,0.00026027,2]
[341860252,1731259851838,-702.43,0.00026027,2]
[341860253,1731259851847,-500.0,0.00026027,2]
[341860254,1731259851858,-500.0,0.00026027,2]
[341860255,1731259851867,-11300.32,0.00026027,2]
[341860256,1731259851877,-500.0,0.00026027,2]
[341860257,1731259851886,-500.0,0.00026027,2]
[341860258,1731259851899,-500.0,0.00026027,2]
[341860259,1731259851909,-500.0,0.00026027,2]
[341860260,1731259851918,-500.0,0.00026027,2]
[341860261,1731259851927,-4927.77,0.00026027,2]
[341860262,1731259851936,-500.0,0.00026027,2]
[341860263,1731259851946,-1154.43,0.00026027,2]
[341860264,1731259851955,-500.0,0.00026027,2]
[341860265,1731259851964,-500.0,0.00026027,2]
[341860266,1731259851974,-745.43,0.00026027,2]
[341860267,1731259851983,-500.0,0.00026027,2]
[341860268,1731259851992,-151.0,0.00026027,7]
[341860269,1731259852001,-151.0,0.00026027,7]
[341860270,1731259852010,-500.0,0.00026027,2]
[341860271,1731259852019,-1333.09,0.00026027,2]
[341860272,1731259852028,-500.0,0.00026027,2]
[341860273,1731259852037,-708.44,0.00026027,2]
[341860274,1731259852046,-500.0,0.00026027,2]
[341860276,1731259852055,-910.14,0.00026027,2]
[341860278,1731259852064,-957.29,0.00026027,2]
[341860280,1731259852074,-500.0,0.00026027,2]
[341860282,1731259852083,-500.0,0.00026027,2]
[341860284,1731259852092,-514.62,0.00026027,2]
[341860286,1731259852101,-880.12,0.00026027,2]
[341860288,1731259852110,-1000.0,0.00026042,2]
[341860290,1731259852121,-424.0,0.00026164,2]
[341860292,1731259852130,-996.63468501,0.00026171,2]
[341860294,1731259852139,-530.45635311,0.00026201,2]
[341860296,1731259852149,-151.0,0.00026301,7]
[341860298,1731259852158,-500.0,0.00026301,2]
[341860300,1731259852167,-500.0,0.00026301,2]
[341860302,1731259852175,-151.0,0.00026301,7]
[341860304,1731259852185,-374.99876,0.00026301,7]
[341860306,1731259852194,-374.99876,0.00026301,7]
[341860308,1731259852203,-151.0,0.00026301,7]
[341860310,1731259852212,-286.580115,0.00026301,7]
[341860312,1731259852221,-286.580115,0.00026301,7]
[341860314,1731259852231,-328.25,0.00026301,2]
[341860316,1731259852240,-1222.68,0.00026301,2]
[341860318,1731259852249,-500.0,0.00026301,2]
[341860320,1731259852258,-500.0,0.00026301,2]
[341860322,1731259852267,-759.67,0.00026301,2]
[341860324,1731259852276,-509.83,0.00026301,2]
[341860326,1731259852285,-500.0,0.00026301,2]
[341860328,1731259852294,-500.0,0.00026301,2]
[341860330,1731259852304,-547.2,0.00026301,2]
[341860333,1731259852313,-1278.56,0.00026301,2]
[341860335,1731259852322,-965.44425,0.00026301,7]
[341860337,1731259852331,-965.44425,0.00026301,7]
[341860339,1731259852341,-500.0,0.00026301,2]
[341860341,1731259852351,-500.0,0.00026301,2]
[341860343,1731259852362,-500.0,0.00026301,2]
[341860345,1731259852371,-500.0,0.00026301,2]
[341860347,1731259852380,-500.0,0.00026301,2]
[341860348,1731259852389,-1280.29,0.00026301,2]
[341860351,1731259852400,-598.75737299,0.00026301,2]
[341860353,1731259852410,-500.0,0.00026301,2]
[341860355,1731259852419,-500.0,0.00026301,2]
[341860357,1731259852428,-692.37,0.00026301,2]
[341860359,1731259852437,-500.0,0.00026301,2]
[341860360,1731259852447,-522.61,0.00026301,2]
[341860362,1731259852456,-500.0,0.00026301,2]
[341860364,1731259852465,-151.0,0.00026301,7]
[341860366,1731259852474,-500.0,0.00026301,2]
[341860369,1731259852483,-500.0,0.00026301,2]
[341860370,1731259852492,-238.43460439,0.00026301,2]
[341860372,1731259852502,-500.0,0.00026301,2]
[341860375,1731259852511,-500.0,0.00026301,2]
[341860377,1731259852520,-500.0,0.00026301,2]
[341860379,1731259852530,-704.27,0.00026301,2]
[341860381,1731259852539,-561.51,0.00026301,2]
[341860383,1731259852547,-500.0,0.00026301,2]
[341860385,1731259852556,-500.0,0.00026301,2]
[341860387,1731259852565,-546.56429739,0.00026301,2]
[341860388,1731259852575,-500.0,0.00026301,2]
[341860390,1731259852584,-1143.39,0.00026301,2]
[341860392,1731259852593,-500.0,0.00026301,2]
[341860394,1731259852604,-500.0,0.00026301,2]
[341860396,1731259852613,-500.0,0.00026301,2]
[341860399,1731259852623,-500.0,0.00026301,2]
[341860400,1731259852632,-586.67,0.00026301,2]
[341860402,1731259852641,-520.53,0.00026301,2]
[341860404,1731259852650,-2033.34,0.00026301,2]
[341860406,1731259852658,-2276.74,0.00026301,2]
[341860408,1731259852667,-500.0,0.00026301,2]
[341860411,1731259852676,-500.0,0.00026301,2]
[341860413,1731259852686,-500.0,0.00026301,2]
[341860415,1731259852696,-768.41,0.00026301,2]
[341860417,1731259852705,-553.62,0.00026301,2]
[341860419,1731259852715,-5858.03,0.00026301,2]
[341860421,1731259852724,-423.81987317,0.00026301,2]
[341860423,1731259852733,-500.0,0.00026301,2]
[341860425,1731259852743,-1167.687452,0.00026301,7]
[341860427,1731259852752,-739.7,0.00026301,2]
[341860429,1731259852761,-151.0,0.00026301,7]
[341860431,1731259852771,-1167.687452,0.00026301,7]
[341860433,1731259852780,-500.0,0.00026301,2]
[341860435,1731259852790,-1109.81,0.00026301,2]
[341860437,1731259852799,-500.0,0.00026301,2]
[341860439,1731259852810,-500.0,0.00026301,2]
[341860441,1731259852822,-702.43,0.00026301,2]
[341860443,1731259852831,-500.0,0.00026301,2]
[341860445,1731259852841,-500.0,0.00026301,2]
[341860447,1731259852853,-3791.11833381,0.00026301,2]
[341860478,1731259853141,-500.0,0.00024657,2]
[341860480,1731259853151,-500.0,0.00024931,2]
[341860482,1731259853160,-500.0,0.00025205,2]
[341860484,1731259853169,-7509.20166619,0.00026301,2]
[341860486,1731259853178,-436.66772553,0.00026301,2]
[341860488,1731259853187,-500.0,0.00026301,2]
[341860490,1731259853196,-500.0,0.00026301,2]
[341860492,1731259853205,-500.0,0.00026301,2]
[341860494,1731259853214,-4927.77,0.00026301,2]
[341860496,1731259853223,-500.0,0.00026301,2]
[341860498,1731259853232,-1154.43,0.00026301,2]
[341860500,1731259853242,-500.0,0.00026301,2]
[341860502,1731259853251,-500.0,0.00026301,2]
[341860504,1731259853260,-745.43,0.00026301,2]
[341860506,1731259853270,-491.544911,0.00026301,7]
[341860508,1731259853279,-491.544911,0.00026301,7]
[341860510,1731259853288,-500.0,0.00026301,2]
[341860512,1731259853297,-500.0,0.00026301,2]
[341860514,1731259853306,-1333.09,0.00026301,2]
[341860516,1731259853316,-500.0,0.00026301,2]
[341860518,1731259853325,-708.44,0.00026301,2]
[341860527,1731259853437,-500.0,0.00026301,2]
[341860528,1731259853447,-910.14,0.00026301,2]
[341860529,1731259853456,-251.883171,0.00026301,7]
[341860530,1731259853465,-957.29,0.00026301,2]
[341860531,1731259853474,-251.883171,0.00026301,7]
[341860532,1731259853483,-917.924886,0.00026301,7]
[341860533,1731259853492,-917.924886,0.00026301,7]
[341860534,1731259853501,-500.0,0.00026301,2]
[341860535,1731259853510,-500.0,0.00026301,2]
[341860536,1731259853519,-880.12,0.00026301,2]
[341860537,1731259853528,-514.62,0.00026301,2]
[341860538,1731259853537,-1000.0,0.00026342,2]
[341860539,1731259853546,-1000.0,0.00026342,2]
[341860540,1731259853556,-1000.0,0.00026342,2]
[341860541,1731259853565,-1000.0,0.00026342,2]
[341860542,1731259853574,-660.0,0.00026384,2]
[341860543,1731259853583,-424.0,0.00026438,2]
[341860544,1731259853592,-465.47210031,0.00026533,2]
[341860545,1731259853601,-500.0,0.00026575,2]
[341860546,1731259853610,-987.405149,0.00026575,7]
[341860547,1731259853619,-987.405149,0.00026575,7]
[341860548,1731259853629,-151.0,0.00026575,7]
[341860550,1731259853638,-529.49888683,0.00026575,2]
[341860552,1731259853647,-1222.68,0.00026575,2]
[341860554,1731259853656,-500.0,0.00026575,2]
[341860556,1731259853665,-500.0,0.00026575,2]
[341860558,1731259853675,-759.67,0.00026575,2]
[341860560,1731259853685,-509.83,0.00026575,2]
[341860562,1731259853695,-500.0,0.00026575,2]
[341860564,1731259853704,-500.0,0.00026575,2]
[341860566,1731259853713,-547.2,0.00026575,2]
[341860568,1731259853723,-1278.56,0.00026575,2]
[341860570,1731259853732,-500.0,0.00026575,2]
[341860572,1731259853741,-448.07831135,0.00026575,2]
[341860574,1731259853751,-500.0,0.00026575,2]
[341860576,1731259853760,-469.17283603,0.00026575,2]
[341860578,1731259853769,-500.0,0.00026575,2]
[341860580,1731259853779,-719.808437,0.00026575,7]
[341860582,1731259853788,-1280.29,0.00026575,2]
[341860584,1731259853797,-719.808437,0.00026575,7]
[341860586,1731259853806,-1091.288227,0.00026575,7]
[341860588,1731259853817,-201.280014,0.00026575,7]
[341860590,1731259853828,-201.280014,0.00026575,7]
[341860592,1731259853837,-1091.288227,0.00026575,7]
[341860594,1731259853846,-500.0,0.00026575,2]
[341860596,1731259853857,-692.37,0.00026575,2]
[341860597,1731259853866,-500.0,0.00026575,2]
[341860599,1731259853876,-522.61,0.00026575,2]
[341860601,1731259853885,-500.0,0.00026575,2]
[341860603,1731259853896,-500.0,0.00026575,2]
[341860605,1731259853906,-406.21717,0.00026575,7]
[341860607,1731259853915,-500.0,0.00026575,2]
[341860609,1731259853924,-406.21717,0.00026575,7]
[341860611,1731259853934,-212.0,0.00026575,2]
[341860614,1731259853944,-199.93710248,0.00026575,2]
[341860615,1731259853953,-151.0,0.00026575,7]
[341860617,1731259853962,-1775.554146,0.00026575,7]
[341860619,1731259853971,-1775.554146,0.00026575,7]
[341860621,1731259853980,-704.27,0.00026575,2]
[341860623,1731259853990,-561.51,0.00026575,2]
[341860625,1731259854000,-500.0,0.00026575,2]
[341860627,1731259854009,-571.42,0.00026575,2]
[341860629,1731259854018,-2207.341028,0.00026575,7]
[341860632,1731259854028,-2207.341028,0.00026575,7]
[341860634,1731259854037,-151.0,0.00026575,7]
[341860635,1731259854046,-500.0,0.00026575,2]
[341860637,1731259854056,-1143.39,0.00026575,2]
[341860639,1731259854065,-500.0,0.00026575,2]
[341860641,1731259854074,-500.0,0.00026575,2]
[341860644,1731259854084,-586.67,0.00026575,2]
[341860645,1731259854093,-520.53,0.00026575,2]
[341860647,1731259854103,-2276.74,0.00026575,2]
[341860649,1731259854113,-500.0,0.00026575,2]
[341860651,1731259854122,-474.99,0.00026575,2]
[341860653,1731259854131,-500.0,0.00026575,2]
[341860655,1731259854140,-768.41,0.00026575,2]
[341860657,1731259854149,-5858.03,0.00026575,2]
[341860659,1731259854158,-461.791238,0.00026575,7]
[341860661,1731259854167,-540.08,0.00026575,2]
[341860663,1731259854176,-739.7,0.00026575,2]
[341860665,1731259854185,-461.791238,0.00026575,7]
[341860667,1731259854194,-384.24050358,0.00026575,2]
[341860669,1731259854204,-1109.81,0.00026575,2]
[341860672,1731259854213,-539.11059015,0.00026575,2]
[341860673,1731259854222,-500.0,0.00026575,2]
[341860675,1731259854231,-702.43,0.00026575,2]
[341860677,1731259854240,-500.0,0.00026575,2]
[341860679,1731259854249,-500.0,0.00026575,2]
[341860681,1731259854258,-11300.32,0.00026575,2]
[341860683,1731259854267,-4927.77,0.00026575,2]
[341860685,1731259854276,-500.0,0.00026575,2]
[341860688,1731259854286,-1154.43,0.00026575,2]
[341860689,1731259854295,-500.0,0.00026575,2]
[341860691,1731259854304,-500.0,0.00026575,2]
[341860693,1731259854313,-745.43,0.00026575,2]
[341860696,1731259854324,-300.88383776,0.00026575,2]
[341860698,1731259854333,-151.0,0.00026575,7]
[341860699,1731259854342,-151.0,0.00026575,7]
[341860702,1731259854352,-500.0,0.00026575,2]
[341860704,1731259854363,-1333.09,0.00026575,2]
[341860707,1731259854379,-500.0,0.00026575,2]
[341860709,1731259854394,-708.44,0.00026575,2]
[341860711,1731259854407,-500.0,0.00026575,2]
[341860714,1731259854421,-910.14,0.00026575,2]
[341860716,1731259854434,-957.29,0.00026575,2]
[341860719,1731259854449,-500.0,0.00026575,2]
[341860722,1731259854463,-500.0,0.00026575,2]
[341860724,1731259854477,-880.12,0.00026575,2]
[341860727,1731259854492,-514.62,0.00026575,2]
[341860729,1731259854505,-1006.90178019,0.00026642,2]
[341860731,1731259854518,-1000.0,0.00026642,2]
[341860734,1731259854532,-1000.0,0.00026642,2]
[341860736,1731259854545,-996.63468501,0.00026703,2]
[341860739,1731259854558,-424.0,0.00026712,2]
[341860741,1731259854570,-8680.32327734,0.00026755,2]
[341860743,1731259854581,-3731.54,0.000268,14]
[341860746,1731259854596,-1747.02,0.000268,14]
[341860748,1731259854610,-151.0,0.00026849,7]
[341860751,1731259854625,-151.0,0.00026849,7]
[341860754,1731259854639,-281.675632,0.00026849,7]
[341860756,1731259854654,-281.675632,0.00026849,7]
[341860758,1731259854664,-151.0,0.00026849,7]
[341860760,1731259854675,-151.0,0.00026849,7]
[341860763,1731259854689,-500.0,0.00026849,2]
[341860766,1731259854704,-1222.68,0.00026849,2]
[341860768,1731259854718,-500.0,0.00026849,2]
[341860770,1731259854729,-500.0,0.00026849,2]
[341860773,1731259854741,-759.67,0.00026849,2]
[341860775,1731259854755,-509.83,0.00026849,2]
[341860777,1731259854767,-500.0,0.00026849,2]
[341860779,1731259854778,-500.0,0.00026849,2]
[341860782,1731259854789,-547.2,0.00026849,2]
[341860784,1731259854801,-1278.56,0.00026849,2]
[341860786,1731259854813,-246.56,0.00026849,2]
[341860789,1731259854829,-500.0,0.00026849,2]
[341860791,1731259854842,-500.0,0.00026849,2]
[341860793,1731259854856,-1280.29,0.00026849,2]
[341860796,1731259854868,-293.78100532,0.00026849,2]
[341860798,1731259854880,-692.37,0.00026849,2]
[341860800,1731259854893,-500.0,0.00026849,2]
[341860802,1731259854904,-522.61,0.00026849,2]
[341860805,1731259854916,-500.0,0.00026849,2]
[341860807,1731259854928,-500.0,0.00026849,2]
[341860809,1731259854939,-500.0,0.00026849,2]
[341860812,1731259854951,-704.27,0.00026849,2]
[341860814,1731259854962,-561.51,0.00026849,2]
[341860816,1731259854973,-500.0,0.00026849,2]
[341860818,1731259854985,-500.0,0.00026849,2]
[341860820,1731259854997,-1143.39,0.00026849,2]
[341860823,1731259855008,-500.0,0.00026849,2]
[341860825,1731259855021,-500.0,0.00026849,2]
[341860827,1731259855033,-586.67,0.00026849,2]
[341860830,1731259855044,-520.53,0.00026849,2]
[341860832,1731259855055,-2276.74,0.00026849,2]
[341860834,1731259855067,-500.0,0.00026849,2]
[341860836,1731259855080,-500.0,0.00026849,2]
[341860839,1731259855092,-768.41,0.00026849,2]
[341860841,1731259855104,-5858.03,0.00026849,2]
[341860843,1731259855116,-607.64,0.00026849,2]
[341860845,1731259855128,-1167.687452,0.00026849,7]
[341860848,1731259855140,-739.7,0.00026849,2]
[341860850,1731259855151,-1167.687452,0.00026849,7]
[341860852,1731259855162,-151.0,0.00026849,7]
[341860854,1731259855175,-1109.81,0.00026849,2]
[341860856,1731259855185,-500.0,0.00026849,2]
[341860859,1731259855194,-702.43,0.00026849,2]
[341860861,1731259855204,-500.0,0.00026849,2]
[341860863,1731259855213,-11300.32,0.00026849,2]
[341860865,1731259855223,-4927.77,0.00026849,2]
[341860866,1731259855232,-500.0,0.00026849,2]
[341860869,1731259855242,-1154.43,0.00026849,2]
[341860870,1731259855251,-500.0,0.00026849,2]
[341860873,1731259855261,-500.0,0.00026849,2]
[341860875,1731259855270,-745.43,0.00026849,2]
[341860876,1731259855279,-491.544911,0.00026849,7]
[341860878,1731259855289,-491.544911,0.00026849,7]
[341860880,1731259855299,-500.0,0.00026849,2]
[341860883,1731259855308,-274.35730283,0.00026849,2]
[341860887,1731259855337,-1058.73269717,0.00026849,2]
[341860889,1731259855346,-164.91986606,0.00026849,2]
[341860891,1731259855356,-146.34743677,0.00026849,2]
[341860894,1731259855379,-477.73428811,0.00024657,2]
[341860908,1731259855502,-22.26571189,0.00024657,2]
[341860933,1731259855712,-562.09256323,0.00026849,2]
[341860935,1731259855727,-500.0,0.00026849,2]
[341860938,1731259855741,-910.14,0.00026849,2]
[341860940,1731259855750,-251.883171,0.00026849,7]
[341860942,1731259855759,-957.29,0.00026849,2]
[341860944,1731259855768,-251.883171,0.00026849,7]
[341860946,1731259855777,-917.924886,0.00026849,7]
[341860948,1731259855786,-6.44814188,0.00026849,7]
[341860954,1731259855839,-662.0103033,0.00026849,7]
[341862564,1731260079564,543.0,0.00022145,2]
[341862566,1731260238829,520.83333333,0.00022145,2]
[341862568,1731260481126,166.158806,0.00013973,2]
[341862569,1731260550839,520.83333333,0.00022145,2]
[341862577,1731260862484,520.83333333,0.00022145,2]
[341863180,1731261036221,-174.1833,0.00022252,2]
[341863193,1731261036231,-520.83333333,0.00022382,2]
[341863195,1731261036445,-300.0,0.0002254,2]
[341863197,1731261036454,-190.52052395,0.0002254,2]
[341863200,1731261036466,-109.47947605,0.0002254,2]
[341863202,1731261036475,-24900.0,0.00022541,2]
[341863204,1731261036484,-362.798248,0.00022748,2]
[341863206,1731261036493,-248.015154,0.00023217,2]
[341863208,1731261036502,-248.015154,0.00023223,2]
[341863210,1731261036511,-248.015154,0.00023229,2]
[341863212,1731261036520,-248.015154,0.00023235,2]
[341863214,1731261036531,-248.015154,0.00023242,2]
[341863216,1731261036541,-248.015154,0.00023248,2]
[341863218,1731261036550,-248.015154,0.00023254,2]
[341863220,1731261036560,-248.015154,0.0002326,2]
[341863222,1731261036569,-248.015154,0.00023266,2]
[341863224,1731261036579,-248.015154,0.00023272,2]
[341863226,1731261036588,-248.015154,0.00023278,2]
[341863228,1731261036597,-248.015154,0.00023284,2]
[341863230,1731261036606,-248.015154,0.0002329,2]
[341863232,1731261036615,-248.015154,0.00023297,2]
[341863234,1731261036625,-248.015154,0.00023303,2]
[341863236,1731261036634,-248.015154,0.00023309,2]
[341863238,1731261036643,-248.015154,0.00023315,2]
[341863240,1731261036653,-248.015154,0.00023321,2]
[341863242,1731261036662,-248.015154,0.00023327,2]
[341863244,1731261036671,-248.015154,0.00023333,2]
[341863246,1731261036683,-405.869838,0.00023465,2]
[341863248,1731261036692,-182.69,0.00023798,2]
[341863250,1731261036701,-4499.30322004,0.00024104,2]
[341863252,1731261036710,-476.62319273,0.00024104,2]
[341863254,1731261036719,-405.869838,0.0002415,2]
[341863256,1731261036728,-166.158806,0.00024224,2]
[341863258,1731261036738,-420.0,0.0002448,2]
[341863260,1731261036747,-500.0,0.00024657,2]
[341863262,1731261036756,-513.68137765,0.00024657,2]
[341863263,1731261036766,-500.0,0.00024657,2]
[341863264,1731261036775,-465.66992882,0.00024657,2]
[341863265,1731261036788,-500.0,0.00024657,2]
[341863266,1731261036797,-500.0,0.00024657,2]
[341863267,1731261036806,-500.0,0.00024657,2]
[341863268,1731261036816,-500.0,0.00024657,2]
[341863269,1731261036825,-500.0,0.00024657,2]
[341863270,1731261036835,-500.0,0.00024657,2]
[341863271,1731261036844,-221.96880814,0.00024657,2]
[341863272,1731261036853,-507.19836782,0.00024657,2]
[341863273,1731261036862,-500.0,0.00024657,2]
[341863274,1731261036871,-500.0,0.00024657,2]
[341863275,1731261036880,-500.0,0.00024657,2]
[341863276,1731261036889,-500.0,0.00024657,2]
[341863277,1731261036898,-500.0,0.00024657,2]
[341863278,1731261036907,-238.43460439,0.00024657,2]
[341863279,1731261036917,-500.0,0.00024657,2]
[341863280,1731261036927,-500.0,0.00024657,2]
[341863281,1731261036936,-500.0,0.00024657,2]
[341863282,1731261036945,-565.82,0.00024657,2]
[341863283,1731261036954,-500.0,0.00024657,2]
[341863284,1731261036964,-500.0,0.00024657,2]
[341863285,1731261036973,-250.0,0.00024657,2]